Cogmind - Beta 10.1 @@@ ROGUE MODE // 2020.09.27 @ 04:12:18 Player: HOTSOUP Result: Self-destructed Performance ------------- Evolutions (2) 1000 Regions Visited (5) 1000 Robots Destroyed (44) 220 Value Destroyed (1152) 1152 Prototype IDs (3) 60 Alien Tech Used (0) 0 Bonus (46) 46 TOTAL SCORE: 3478 Bonus ------- High Alert Combat Kills 46 Cogmind --------- Core Integrity 550/550 Matter 167/300 Energy 100/100 System Corruption 0% Temperature Cool (0) Movement Flying (35) Location -8/Materials Parts ------- > --- POWER (1) -------- (None) > --- PROPULSION (2) --- Improved Flight Unit > --- UTILITY (4) ------ Improved Targeting Computer Advanced Targeting Computer Advanced Targeting Computer Advanced Targeting Computer > --- WEAPON (4) ------- EM Shotgun > --- INVENTORY (4) ---- Improved Targeting Computer Hacking Suite Rocket Launcher Flail Peak State ------------ > --- POWER ------------ Improved Ion Engine > --- PROPULSION ------- Flight Unit Improved Flight Unit > --- UTILITY ---------- Advanced Targeting Computer Advanced Targeting Computer Advanced Targeting Computer Advanced Targeting Computer > --- WEAPON ----------- Rocket Launcher Flail > --- INVENTORY -------- Improved Targeting Computer Improved Targeting Computer [Rating: 22] Favorites ----------- Power Light Ion Engine Engine Light Ion Engine Propulsion Flight Unit Flight Unit Flight Unit Utility Advanced Targeting Computer Processor Advanced Targeting Computer Weapon Mini Grenade Launcher Energy Gun EM Shotgun Launcher Mini Grenade Launcher Impact Weapon Flail Build | -11 -10 -10 -9 -9 -8 ------- Run | Scr Mat Min Mat Sto Mat Slots Evolved 4 | . . . 2 . 2 Power . | . . . . . . Propulsion . | . . . . . . Utility 2 | . . . 2 . . Weapon 2 | . . . . . 2 Parts Attached 22 | 1 5 2 4 10 . Power 2 | . . 1 . 1 . Engine 2 | . . 1 . 1 . Core . | . . . . . . Reactor . | . . . . . . Propulsion 6 | . 2 1 . 3 . Treads . | . . . . . . Leg . | . . . . . . Wheel . | . . . . . . Hover . | . . . . . . Flight 6 | . 2 1 . 3 . Utility 7 | . 2 . 4 1 . Device . | . . . . . . Storage . | . . . . . . Processor 7 | . 2 . 4 1 . Hackware . | . . . . . . Protection . | . . . . . . Artifact . | . . . . . . Weapon 7 | 1 1 . . 5 . Energy Gun 3 | 1 . . . 2 . Energy Cannon . | . . . . . . Ballistic Gun . | . . . . . . Ballistic Cannon . | . . . . . . Launcher 3 | . 1 . . 2 . Special Weapon . | . . . . . . Impact Weapon 1 | . . . . 1 . Slashing Weapon . | . . . . . . Piercing Weapon . | . . . . . . Special Melee Weapon . | . . . . . . Unidentified Prototypes 1 | . . . . 1 . Parts Lost 8 | . 2 . . 6 . Power 2 | . . . . 2 . Propulsion 3 | . 1 . . 2 . Utility 1 | . 1 . . . . Weapon 2 | . . . . 2 . Highest Loss Streak 2 | . 2 . . 2 . Average Slot Usage (%) 64 | . 39 56 81 79 . Engine 5 | . . 7 11 6 . Flight 15 | . 9 21 22 16 . Processor 30 | . 16 14 37 44 . Launcher 10 | . 13 14 11 8 . Impact Weapon 1 | . . . . 2 . Naked Turns . | . . . . . . Heaviest Build 11 | 2 2 4 4 11 3 Greatest Support 12 | 3 4 8 8 12 6 Greatest Overweight (x) 1 | . . . . 1 . Average Overweight (x) . | . . . . . . Largest Inventory Capacity 4 | 4 4 4 4 4 4 Average Capacity 4 | 4 4 4 4 4 4 Most Carried 4 | . 2 3 4 4 4 Average Carried 2 | . 1 2 3 3 4 Final Capacity 4 | 4 4 4 4 4 4 Final Carried 4 | . 2 3 4 4 4 Class Distribution -------------------- 93% | Mutant 6% | Sprinter Dominant Class ---------------- Mutant | -10/Materials Mutant | -10/Mines Mutant | -9/Materials Mutant | -9/Storage Mutant | -8/Materials Resources | -11 -10 -10 -9 -9 -8 ----------- Run | Scr Mat Min Mat Sto Mat Matter Collected 850 | 186 127 11 . 526 . Remotely . | . . . . . . Salvage Created 881 | . 214 13 32 622 . Parts 72 | . 22 3 2 45 . Haulers Intercepted 4 | . 1 . 1 2 . Recyclers Shooed . | . . . . . . Parts Field Recycled . | . . . . . . Retrieved Matter . | . . . . . . Parts Self-Destructed . | . . . . . . Prevented . | . . . . . . Kills | -11 -10 -10 -9 -9 -8 ------- Run | Scr Mat Min Mat Sto Mat Combat Hostiles Destroyed 28 | . 8 3 . 17 . Melee 1 | . . . . 1 . AOE 26 | . 8 3 . 15 . Classes Destroyed 8 | . 6 . . 2 . Worker 4 | . 3 . . 1 . Builder 1 | . . . . 1 . Hauler 4 | . 1 . 1 2 . Operator 3 | . 1 . . 2 . Watcher 4 | . 2 . 1 1 . Swarmer 6 | . 3 3 . . . Grunt 16 | . 5 . . 11 . Sentry 6 | . . . . 6 . Best Kill Streak 15 | . 15 3 2 8 . Combat Bots Only 6 | . 6 3 . 6 . Max Kills in Single Turn 3 | . 2 3 1 3 . Gunslinging . | . . . . . . Exploded 3 | . 2 3 . 3 . Melee 1 | . . . . 1 . Uniques/NPCs Destroyed . | . . . . . . Combat | -11 -10 -10 -9 -9 -8 -------- Run | Scr Mat Min Mat Sto Mat Damage Taken 867 | . 131 . 18 718 . Core 429 | . 84 . 18 327 . Absorbed by Shields . | . . . . . . Core Remaining (%) 59 | 100 . 66 . 13 . Volleys Fired 61 | . 17 1 4 39 . Largest 1 | . 1 1 1 1 . Hottest 45 | . 30 30 30 45 . Shots Fired 61 | . 17 1 4 39 . Gun 2 | . . . . 2 . Cannon . | . . . . . . Launcher 59 | . 17 1 4 37 . Special . | . . . . . . Kinetic . | . . . . . . Thermal . | . . . . . . Explosive 59 | . 17 1 4 37 . Electromagnetic 2 | . . . . 2 . Robot Hit Streak 27 | . 4 . 8 27 . Robot Miss Streak 1 | . 1 . . . . Penetration Max . | . . . . . . Secondary Targets . | . . . . . . Shots Hit Robots 35 | . 4 . 4 27 . Core Hits 77 | . 21 3 4 49 . Critical Hits . | . . . . . . Critical Kills . | . . . . . . Critical Parts Destroyed . | . . . . . . Melee Attacks 16 | . . . . 16 . Impact 16 | . . . . 16 . Slashing . | . . . . . . Piercing . | . . . . . . Sneak Attacks 1 | . . . . 1 . Combat Hostiles . | . . . . . . Follow-up Attacks . | . . . . . . Damage Inflicted 3503 | . 1164 182 297 1860 . Guns 26 | . . . . 26 . Cannons . | . . . . . . Explosions 3260 | . 1164 182 297 1617 . Melee 217 | . . . . 217 . Ramming . | . . . . . . Kinetic . | . . . . . . Thermal 84 | . 84 . . . . Explosive 3176 | . 1080 182 297 1617 . Electromagnetic 26 | . . . . 26 . Impact 217 | . . . . 217 . Slashing . | . . . . . . Piercing . | . . . . . . Highest Corruption . | . . . . . . Average Corruption . | . . . . . . Corruption Purged . | . . . . . . Overload Shots . | . . . . . . Overflow Damage 172 | . 58 . 28 86 . Projectiles . | . . . . . . Explosions 133 | . 58 . 28 47 . Melee 39 | . . . . 39 . Knockbacks . | . . . . . . Impact . | . . . . . . Kinetic . | . . . . . . Secondary . | . . . . . . Self-Inflicted Damage 74 | . 36 . 18 20 . Shots 4 | . 2 . 1 1 . Rammed . | . . . . . . Targets Rammed . | . . . . . . Kicked . | . . . . . . Crushed . | . . . . . . Highest Temperature 13 | . 6 . . 13 . Average Temperature 4 | . 6 . . 4 . Received Heat Transfer 285 | . 33 . . 252 . Siege Activations . | . . . . . . Robots Corrupted . | . . . . . . Combat Hostiles . | . . . . . . Parts Fried . | . . . . . . Impact Corruptions 2 | . . . . 2 . Robots Melted . | . . . . . . Combat Hostiles . | . . . . . . Parts Melted . | . . . . . . Heat Transferred 50 | . 50 . . . . Parts Sabotaged . | . . . . . . Parts Stolen . | . . . . . . Parts Stripped . | . . . . . . Power Chain Reactions . | . . . . . . Missiles Intercepted . | . . . . . . Alert | -11 -10 -10 -9 -9 -8 ------- Run | Scr Mat Min Mat Sto Mat Peak Influence 659 | . 288 75 73 659 271 Initial 271 | . . 5 29 30 271 Average 200 | . 105 44 38 337 271 Maximum Alert Level 2 | . 1 . . 2 1 Low Security (%) 55 | 100 74 100 100 23 . Level 1 28 | . 25 . . 42 100 Level 2 16 | . . . . 34 . Level 3 . | . . . . . . Level 4 . | . . . . . . Level 5 . | . . . . . . High Security . | . . . . . . Max Security . | . . . . . . Squads Dispatched 5 | . 2 . . 3 . Investigation 3 | . 2 . . 1 . Extermination . | . . . . . . Reinforcement 1 | . . . . 1 . Assault . | . . . . . . Garrison 1 | . . . . 1 . Intercept . | . . . . . . Construction Impeded . | . . . . . . Haulers Reinforced . | . . . . . . Stealth | -11 -10 -10 -9 -9 -8 --------- Run | Scr Mat Min Mat Sto Mat Distress Signals 2 | . 1 . . 1 . Communications Jammed . | . . . . . . Distress Signals . | . . . . . . Times Spotted 43 | . 15 . 4 24 . Peak Tracking Total 6 | . 4 . 3 6 . Tactical Retreats 2 | . 1 . . 1 . Traps | -11 -10 -10 -9 -9 -8 ------- Run | Scr Mat Min Mat Sto Mat Traps Triggered . | . . . . . . Indirectly . | . . . . . . Trap Hack Attempts . | . . . . . . Triggered . | . . . . . . Disarmed . | . . . . . . Reprogrammed . | . . . . . . Reused . | . . . . . . Traps Extracted . | . . . . . . Installed . | . . . . . . Triggered . | . . . . . . Machines | -11 -10 -10 -9 -9 -8 ---------- Run | Scr Mat Min Mat Sto Mat Machines Disabled 12 | . 8 . . 4 . Max in Single Turn 1 | . 1 . . 1 . Machines Sabotaged . | . . . . . . Garrisons Compromised . | . . . . . . Overloaded Fab Kills . | . . . . . . Fab Network Shutdowns . | . . . . . . Hacking | -11 -10 -10 -9 -9 -8 --------- Run | Scr Mat Min Mat Sto Mat Machines Accessed 11 | . 7 . 1 3 . Terminals 11 | . 7 . 1 3 . Fabricators . | . . . . . . Repair Stations . | . . . . . . Recycling Units . | . . . . . . Scanalyzers . | . . . . . . Garrison Access . | . . . . . . Total Hacks 37 | . 27 . 2 8 . Successful 19 | . 14 . 1 4 . Failed 18 | . 13 . 1 4 . Catastrophic 2 | . 2 . . . . Database Lockouts . | . . . . . . Manual 25 | . 21 . 2 2 . Terminals 37 | . 27 . 2 8 . Fabricators . | . . . . . . Repair Stations . | . . . . . . Recycling Units . | . . . . . . Scanalyzers . | . . . . . . Garrison Access . | . . . . . . Terminal Hacks 11 | . 9 . . 2 . Prototype ID Bank 1 | . . . . 1 . Terminal Index 1 | . 1 . . . . Alert Level 1 | . 1 . . . . Unreport Threat 3 | . 3 . . . . Locate Traps 1 | . 1 . . . . Dispatch Records 1 | . 1 . . . . Recall Investigation 1 | . 1 . . . . Zone Layout 2 | . 1 . . 1 . Fabricator Hacks . | . . . . . . Repair Station Hacks . | . . . . . . Recycling Unit Hacks . | . . . . . . Scanalyzer . | . . . . . . Garrison Access Hacks . | . . . . . . Unauthorized Hacks 8 | . 5 . 1 2 . Terminals 8 | . 5 . 1 2 . Track 2 | . 1 . . 1 . Botnet 6 | . 4 . 1 1 . Fabricators . | . . . . . . Repair Stations . | . . . . . . Recycling Units . | . . . . . . Scanalyzers . | . . . . . . Garrison Access . | . . . . . . Data Cores Recovered 2 | . 1 . . 1 . Used 2 | . 1 . . 1 . Hacking Detections 9 | . 6 . 1 2 . Full Trace Events 7 | . 6 . . 1 . Feedback Events . | . . . . . . Feedback Blocked . | . . . . . . Robot Schematics Acquired . | . . . . . . Robots Built . | . . . . . . Matter . | . . . . . . Time . | . . . . . . Total Robot Build Rating . | . . . . . . Part Schematics Acquired . | . . . . . . Parts Built . | . . . . . . Matter . | . . . . . . Time . | . . . . . . Total Part Build Rating . | . . . . . . Parts Repaired . | . . . . . . Time . | . . . . . . Parts Recycled . | . . . . . . Recycled Matter . | . . . . . . Retrieved Matter . | . . . . . . Retrieved Components . | . . . . . . Parts Scanalyzed . | . . . . . . Part Schematics Acquired . | . . . . . . Parts Damaged . | . . . . . . Bothacking | -11 -10 -10 -9 -9 -8 ------------ Run | Scr Mat Min Mat Sto Mat Used RIF Installer . | . . . . . . Robots Hacked . | . . . . . . Non-combat . | . . . . . . Combat . | . . . . . . Robot Hacks Applied . | . . . . . . Relay Couplers Released . | . . . . . . Robots Rewired . | . . . . . . Allies Hacked . | . . . . . . Hacks Repelled . | . . . . . . Allies | -11 -10 -10 -9 -9 -8 -------- Run | Scr Mat Min Mat Sto Mat Total Allies . | . . . . . . Largest Group . | . . . . . . Highest-Rated Group . | . . . . . . Highest-Rated Ally . | . . . . . . Total Orders . | . . . . . . Ally Attacks . | . . . . . . Total Damage . | . . . . . . Kills . | . . . . . . Allies Corrupted . | . . . . . . Allies Melted . | . . . . . . Intel | -11 -10 -10 -9 -9 -8 ------- Run | Scr Mat Min Mat Sto Mat Robot Analysis Total . | . . . . . . Derelict Logs Recovered . | . . . . . . Drone Launches . | . . . . . . Drone Recoveries . | . . . . . . Exploration | -11 -10 -10 -9 -9 -8 ------------- Run | Scr Mat Min Mat Sto Mat Turns Passed 687 | 13 204 93 51 323 3 Spaces Moved 923 | 22 358 69 95 373 6 Core 110 | 22 88 . . . . Treads . | . . . . . . Legs . | . . . . . . Wheels . | . . . . . . Hover . | . . . . . . Flight 813 | . 270 69 95 373 6 Fastest Speed 32 | 50 40 37 37 32 35 Average Speed 40 | 50 42 38 37 39 35 Slowest Speed 109 | 50 50 40 37 109 35 Overloaded Moves . | . . . . . . Propulsion Burnouts . | . . . . . . Robots Hopped 4 | . 2 1 . 1 . Cave-ins Triggered . | . . . . . . Exploration Rate (%) 27 | 3 55 18 15 70 2 Regions Visited 5 Branch Regions 2 Pre-discovered Areas . | . . . . . . Known Exits Taken . | . . . . . . Unknown Exits Taken 5 | 1 1 1 1 1 . Scrap Searched . | . . . . . . Spaces Dug 3 | . . . . 3 . Terrain Destroyed 367 | . 110 9 23 225 . Melee 3 | . . . . 3 . Projectile . | . . . . . . AOE 364 | . 110 9 23 222 . Terrain Rammed . | . . . . . . Walls Destroyed . | . . . . . . Machines Disabled . | . . . . . . Actions | -11 -10 -10 -9 -9 -8 --------- Run | Scr Mat Min Mat Sto Mat Total 1135 | 22 388 131 104 484 6 Wait 109 | . 8 60 . 41 . Move 910 | 21 353 66 94 370 6 Hop 4 | . 2 1 . 1 . Pick Up 5 | . 2 1 1 1 . Fast Attach 18 | 1 5 2 4 6 . Attach 4 | . . . . 4 . Detach 3 | . . . . 3 . Swap . | . . . . . . Drop 5 | . 1 . 1 3 . Fire 61 | . 17 1 4 39 . Melee 16 | . . . . 16 . Ram . | . . . . . . Kick . | . . . . . . Crush . | . . . . . . Escape Stasis . | . . . . . . Rewire . | . . . . . . Trap . | . . . . . . Miscellaneous . | . . . . . . Route ------- -11/Scrapyard -10/Materials (discovered 3 exits: *Mat x2 / [*Min]) -10/Mines -9/Materials -9/Storage -8/Materials History --------- Turn | Location | Event 3 | -11/Scrapyard | Discovered new exit (range 15) 14 | -11/Scrapyard | Entered Materials 36 | -10/Materials | Discovered new exit (range 15) 57 | -10/Materials | Discovered new exit (range 16) 103 | -10/Materials | Discovered new exit (range 14) 218 | -10/Materials | Entered Mines 228 | -10/Mines | Met a Derelict bent on vengeance 254 | -10/Mines | Discovered new exit (range 10) 306 | -10/Mines | Build established: Mutant 311 | -10/Mines | Entered Materials 311 | -9/Materials | Evolved 2 slots: Utility x2 348 | -9/Materials | Discovered new exit (range 4) 362 | -9/Materials | Entered Storage 618 | -9/Storage | Garrison activated, responded to threat 650 | -9/Storage | Core integrity fell below 50% 666 | -9/Storage | Discovered new exit (range 8) 677 | -9/Storage | Core integrity fell below 20% 685 | -9/Storage | Entered Materials 685 | -8/Materials | Evolved 2 slots: Weapon x2 688 | -8/Materials | Self-destructed Last Messages --------------- 00668_ Imp. Ion Engine destroyed. 00668_ Acquired EM Shotgun. 00669_ K-01 Serf collects debris. 00672_ O-16 Technician destroyed. 00675_ The unstable cave ceiling collapses. 00675_ Acquired EM Shotgun. 00676_ Acquired 20 matter. 00677_ K-01 Serf collects debris. 00677_ Discarded Adv. Targeting Computer. 00677_ R-06 Scavenger collects Hvy. Assault Rifle. 00678_ EM Shotgun destroyed. 00679_ The unstable cave ceiling collapses. 00679_ Acquired Hacking Suite. 00680_ Connecting with Terminal... 00680_ K-01 Serf collects debris. PARAMETERS=WEAPON_2 LOCATION=UNKNOWN GOAL=ESCAPE 00688_ Connecting with Terminal... 00688_ Current location identified: Materials Map ----- +----------------------------------------------------+ | | | | | | | | | | | | | | | | | | | | | | | | | | | | | | | | | | | | | ?????????????????????????????????????????????????? | | ?????????????????????????????????????????????????? | | ?????????????????????????????????????????????????? | | ?????????????????????????????????????????????????? | | ??????????????????############???????????????????? | | ??????????????????# #*! ] #???????????????????? | | ??????????????????# #! !#???????????????????? | | ??????????????????# # @ #???????????????????? | | ??????????????????# + "T" #???????????????????? | | ??????????????????# # """ #???????????????????? | | ??????????????????# # #???????????????????? | | ??????????????????# ########???????????????????? | | ?????????????????# ??????????????????????????? | | ???????????????? !??????????????????????????? | | ??????????????? ??????????????????????????? | | ?????????????? #?????????????????????????? | | ????????????? #### #?????????????????????????? | | ???????????? ????#######?????????????????????????? | | ??????????? ?????????????????????????????????????? | | ?????????????????????????????????????????????????? | | ?????????????????????????????????????????????????? | | ?????????????????????????????????????????????????? | | ?????????????????????????????????????????????????? | | ?????????????????????????????????????????????????? | | ?????????????????????????????????????????????????? | | ?????????????????????????????????????????????????? | | ?????????????????????????????????????????????????? | | ?????????????????????????????????????????????????? | | ?????????????????????????????????????????????????? | | ?????????????????????????????????????????????????? | | ?????????????????????????????????????????????????? | | ?????????????????????????????????????????????????? | +----------------------------------------------------+ Best States ------------- Heat Dissipation 28 Energy Generation 12 Energy Capacity 265 Matter Stores 276 Matter Capacity 300 Sight Range 16 Terrain Scan Density 10 Evasion (%) 63 Targeting Accuracy 32 Item Schematics ----------------- None Robot Schematics ------------------ None Fabricated ------------ Nothing Alien Tech Used ----------------- None Achievements -------------- None Challenges ------------ None Game ------ Seed AdvancedVortexTorch Manual? 0 Play Time 00:14:50 Cumulative 67.3 hours Start 2020.09.27 @ 03:56:37 End 2020.09.27 @ 04:12:18 Sessions 3 Manual Loads 0 Difficulty Rogue Special Mode None Game No. 86 Rogue 62 Adventurer 22 Explorer 2 Win Type - Total 1 Types 1/0/0/0/0/0/0/0/0 Lore% 42 Gallery% 45 Achievement% 39 Wizard Run 0 Options --------- ASCII 0 Keyboard 0 Movement Numpad Keybinds 0 Fullscreen 1 Font 14/SmallcapsGlow Map View 84x54 Tactical HUD 1 Map Filters NONE Filters NONE Steam 1 RUN: 935a69d5-d907-489d-9eb7-0b3ab6563907